Cogmind - Beta 14 @@@ ROGUE MODE // 2024.11.21 @ 08:56:17 Player: WazdakkaGutsmek Result: Destroyed by S-27 Virus with Autogun Performance ------------- Evolutions (3) 1500 Regions Visited (6) 1200 Robots Destroyed (117) 585 Value Destroyed (3967) 3967 Prototype IDs (13) 260 Alien Tech Used (0) 0 Bonus (1083) 1083 TOTAL SCORE: 8595 Bonus ------- High Alert Combat Kills 345 Follower Combat Kills 751 Friendly Fire -13 Cogmind --------- Core Integrity 0/700 Matter 291/300 Energy 290/290 System Corruption 4% Temperature Cool (20) Movement Core (1000) Ox19 Location -7/Lower Caves Parts ------- > --- POWER (1) -------- Improved Deuterium Engine > --- PROPULSION (5) --- Makeshift Leg > --- UTILITY (5) ------ High-capacity Storage Unit Target Analyzer Armor Integrity Analyzer > --- WEAPON (2) ------- Mini Assault Cannon Mini Assault Cannon > --- INVENTORY (20) --- Light Nuclear Core Compact Wheel Armored Wheel Improved VTOL Module Improved VTOL Module Improved VTOL Module Improved VTOL Module Improved VTOL Module Xenon Bombardment Thruster Improved Sensor Array Improved EM Pulse Cannon Improved EM Pulse Cannon Gauss Rifle Mini Assault Cannon Spear Peak State ------------ > --- POWER ------------ Improved Deuterium Engine > --- PROPULSION ------- Wheel Gravmag System Linear Gravjet Linear Gravjet Linear Gravjet > --- UTILITY ---------- Advanced Heat Sink High-capacity Storage Unit Improved Melee Analysis Suite Target Analyzer Medium Armor Plating > --- WEAPON ----------- Mini Assault Cannon Spear > --- INVENTORY -------- Light Nuclear Core Medium Treads Wheel Linear Gravjet Flight Unit Improved Flight Unit Improved Flight Unit Improved Flight Unit Improved Flight Unit Improved VTOL Module Improved Sensor Array ECM Suite Heavy Particle Gun Improved EM Pulse Cannon Improved EM Pulse Cannon Gauss Rifle Mini Assault Cannon Mini Assault Cannon Rocket Launcher Heavy Rocket Launcher [Rating: 57] Favorites ----------- Power Cooled Ion Engine Engine Cooled Ion Engine Power Core Light Nuclear Core Propulsion Improved Treads Treads Improved Treads Leg Makeshift Leg Wheel Armored Huge Wheel Hover Unit Linear Gravjet Flight Unit Improved VTOL Module Utility High-capacity Storage Unit Device Advanced Heat Sink Storage High-capacity Storage Unit Processor Target Analyzer Protection Hardened Light Armor Plating Weapon Mini Assault Cannon Energy Gun Improved Medium Laser Energy Cannon Advanced Beam Cannon Ballistic Gun Improved Assault Rifle Ballistic Cannon Mini Assault Cannon Launcher Rocket Launcher Impact Weapon Great Maul Piercing Weapon Spear Build | -11 -10 -9 -9 -8 -7 -7 ------- Run | Yrd Mat Mat Sto Mat Fac Low Slots Evolved 6 | . . 2 . 2 2 . Power . | . . . . . . . Propulsion 3 | . . 1 . 1 1 . Utility 3 | . . 1 . 1 1 . Weapon . | . . . . . . . Parts Attached 96 | . 9 8 12 14 40 13 Power 8 | . . 1 1 . 5 1 Engine 6 | . . 1 1 . 3 1 Core 2 | . . . . . 2 . Reactor . | . . . . . . . Propulsion 40 | . 5 6 2 5 17 5 Treads 22 | . 5 5 2 5 1 4 Leg 5 | . . . . . 4 1 Wheel 6 | . . . . . 6 . Hover 5 | . . . . . 5 . Flight 2 | . . 1 . . 1 . Utility 17 | . 1 1 2 4 6 3 Device 5 | . . . 1 4 . . Storage 2 | . 1 1 . . . . Processor 6 | . . . 1 . 3 2 Hackware . | . . . . . . . Protection 4 | . . . . . 3 1 Artifact . | . . . . . . . Weapon 31 | . 3 . 7 5 12 4 Energy Gun 5 | . 2 . 1 2 . . Energy Cannon 3 | . . . 1 . 2 . Ballistic Gun 5 | . 1 . 2 1 1 . Ballistic Cannon 7 | . . . . 1 4 2 Launcher 7 | . . . 2 1 2 2 Special Weapon . | . . . . . . . Impact Weapon 2 | . . . 1 . 1 . Slashing Weapon . | . . . . . . . Piercing Weapon 2 | . . . . . 2 . Special Melee Weapon . | . . . . . . . Unidentified Prototypes 11 | . 2 2 2 3 2 . Parts Lost 25 | . . . . 4 10 11 Power 3 | . . . . . 2 1 Propulsion 11 | . . . . 3 5 3 Utility 8 | . . . . 1 2 5 Weapon 3 | . . . . . 1 2 Highest Loss Streak 6 | . . . . 2 5 6 To Critical Strikes . | . . . . . . . Average Slot Usage (%) 79 | . 83 75 98 87 70 75 Engine 7 | . 14 11 11 9 3 6 Treads 17 | . 24 31 33 31 2 17 Leg 1 | . 2 . . . 1 4 Wheel 4 | . . . . . 11 . Hover 2 | . . . . . 5 . Device 7 | . . . 10 11 8 . Storage 8 | . 14 11 11 9 7 7 Processor 9 | . . . 9 8 10 16 Protection 2 | . . . . . 4 5 Energy Gun 3 | . 13 11 6 3 . . Energy Cannon 2 | . . . 4 6 2 . Ballistic Gun 3 | . 13 11 9 4 . . Ballistic Cannon 4 | . . . . 2 4 14 Peak Build Rating 57 | 6 12 17 20 35 57 47 Average Rating 32 | 6 10 13 19 27 41 40 On Entrance 17 | 6 6 11 15 19 31 33 Naked Turns . | . . . . . . . Heaviest Build 71 | 13 31 54 57 63 71 62 Greatest Support 92 | 20 40 60 60 92 68 79 Greatest Overweight (x) 20 | . 1 10 . 2 20 2 Average Overweight (x) 1 | . . . . . 2 . Largest Inventory Capacity 20 | 8 15 20 20 20 20 20 Average Capacity 19 | 8 12 15 20 20 20 20 Most Carried 20 | 5 9 14 14 20 20 20 Average Carried 15 | 5 7 9 11 16 18 15 Final Capacity 20 | 8 15 20 20 20 20 20 Final Carried 20 | 4 8 11 11 20 20 15 Class Distribution -------------------- 82% | Mutant 7% | Scavenger-Mutant 5% | Commander-Mutant 4% | Derelict-Mutant Dominant Class ---------------- Mutant | -10/Materials Mutant | -9/Materials Mutant | -9/Storage Mutant | -8/Materials Mutant | -7/Factory Mutant | -7/Lower Caves Resources | -11 -10 -9 -9 -8 -7 -7 ----------- Run | Yrd Mat Mat Sto Mat Fac Low Matter Collected 2417 | 200 57 236 254 471 652 547 Remotely . | . . . . . . . Salvage Created 4039 | . 98 648 544 971 1504 274 Parts 198 | . 7 40 23 56 63 9 Haulers Intercepted 11 | . . 2 3 5 1 . Recyclers Shooed 2 | . . 1 . . 1 . Parts Field Recycled . | . . . . . . . Retrieved Matter . | . . . . . . . Parts Self-Destructed 7 | . . . . . . 7 Prevented 1 | . . . . . . 1 Kills | -11 -10 -9 -9 -8 -7 -7 ------- Run | Yrd Mat Mat Sto Mat Fac Low Combat Hostiles Destroyed 84 | . 4 13 9 15 28 15 Melee 5 | . . . . . 5 . Guns 22 | . 4 13 4 1 . . Cannons 32 | . . . 1 11 11 9 AOE 18 | . . . 4 1 7 6 Classes Destroyed 14 | . 2 4 4 2 2 . Worker 4 | . . . 1 . 3 . Builder 2 | . . . . 2 . . Hauler 11 | . . 2 3 5 1 . Recycler 3 | . . . . . 3 . Mechanic 2 | . . . 2 . . . Operator 4 | . . 2 . 1 1 . Watcher 7 | . . . 1 2 4 . Swarmer 16 | . 3 3 . . 8 2 Grunt 44 | . 1 8 7 9 14 5 Brawler 5 | . . . 1 1 1 2 Duelist 4 | . . 1 . . . 3 Sentry 10 | . . 1 1 4 2 2 Hunter 4 | . . . . 1 2 1 Programmer 1 | . . . . . 1 . Best Kill Streak 9 | . 3 6 6 5 5 9 Combat Bots Only 9 | . 3 5 4 5 4 9 Max Kills in Single Turn 3 | . 1 2 3 1 3 2 Gunslinging 1 | . . 1 . . . . Exploded 3 | . . . 2 1 3 2 Melee 1 | . . . . . 1 . Uniques/NPCs Destroyed . | . . . . . . . Combat | -11 -10 -9 -9 -8 -7 -7 -------- Run | Yrd Mat Mat Sto Mat Fac Low Hostile Shots Fired 485 | . 13 66 27 111 179 89 Missed 152 | . 4 18 11 39 59 21 Damage Taken 5799 | . 81 580 174 1092 2269 1603 Core 1084 | . 30 136 36 178 398 306 Absorbed by Shields 339 | . . . 66 245 28 . Redirected to Shielding 64 | . . . . . . 64 Regen/Repaired (Parts) 48 | . . . . . 48 . Core Remaining (%) 78 | 100 88 . 57 67 . . Volleys Fired 236 | . 7 37 30 76 52 34 Largest 2 | . 2 2 2 2 2 2 Hottest 138 | . 79 79 91 116 138 96 Shots Fired 459 | . 14 74 59 152 93 67 Gun 170 | . 14 74 45 32 5 . Cannon 273 | . . . 10 116 85 62 Launcher 16 | . . . 4 4 3 5 Special . | . . . . . . . Kinetic 247 | . 7 37 28 72 41 62 Thermal 151 | . 7 37 27 76 4 . Explosive 12 | . . . 4 . 3 5 Electromagnetic 49 | . . . . 4 45 . Robot Hit Streak 21 | . 4 10 8 21 8 16 Robot Miss Streak 3 | . 1 2 2 3 3 3 Penetration Max . | . . . . . . . Secondary Targets 4 | . . 3 1 . . . Max Gunslinging Chain 1 | . . 1 1 . . . Shots Hit Robots 324 | . 10 50 29 105 85 45 Core Hits 162 | . 5 22 22 43 41 29 Critical Kills . | . . . . . . . Critical Parts Destroyed 2 | . . . . . 2 . Critical Strikes 33 | . 2 2 . 5 17 7 Burn 4 | . 2 2 . . . . Blast 19 | . . . . 5 7 7 Corrupt 1 | . . . . . 1 . Smash 3 | . . . . . 3 . Impale 6 | . . . . . 6 . Melee Attacks 39 | . . . 10 . 29 . Impact 13 | . . . 10 . 3 . Slashing . | . . . . . . . Piercing 26 | . . . . . 26 . Sneak Attacks 6 | . . . . . 6 . Combat Hostiles . | . . . . . . . Follow-up Attacks . | . . . . . . . Damage Inflicted 10254 | . 167 853 1059 2781 3342 2052 Guns 1701 | . 167 847 351 317 19 . Cannons 4680 | . . . 82 1936 1626 1036 Explosions 2854 | . . . 626 528 684 1016 Melee 1013 | . . . . . 1013 . Ramming 6 | . . 6 . . . . Kinetic 3550 | . 82 429 203 1185 615 1036 Thermal 1908 | . 85 418 230 1068 107 . Explosive 2238 | . . . 626 . 596 1016 Electromagnetic 1539 | . . . . 528 1011 . Impact 131 | . . . . . 131 . Slashing . | . . . . . . . Piercing 882 | . . . . . 882 . Highest Corruption 4 | . . . . 1 . 4 Average Corruption 2 | . . . . 1 . 4 Corruption Purged . | . . . . . . . Corruption Blocked . | . . . . . . . Effects 25 | . . . . 4 . 21 Message Errors 6 | . . . . . . 6 Matter Fused 6 | . . . . 1 . 5 Heat Flow Errors 1 | . . . . 1 . . Energy Discharges 6 | . . . . 1 . 5 Data Loss (minor) 2 | . . . . 1 . 1 Data Loss (major) 2 | . . . . . . 2 Misfires 1 | . . . . . . 1 Alerts 1 | . . . . . . 1 Overload Shots . | . . . . . . . Overflow Damage 423 | . . . . 21 368 34 Projectiles 67 | . . . . 18 17 32 Explosions 110 | . . . . 3 105 2 Melee 246 | . . . . . 246 . Knockbacks 20 | . . . . 7 6 7 Impact 1 | . . . . . 1 . Kinetic 18 | . . . . 6 5 7 Secondary 1 | . . . . 1 . . Self-Inflicted Damage 632 | . . . . 61 300 271 Shots 17 | . . . . 5 7 5 Rammed 2 | . . 1 . . 1 . Targets Rammed 2 | . . 1 . . 1 . Kicked . | . . . . . . . Crushed . | . . . . . . . Highest Temperature 336 | . 72 213 72 318 105 336 Average Temperature 53 | . 40 53 16 52 21 127 Received Heat Transfer 1612 | . 18 216 58 543 444 333 Siege Activations . | . . . . . . . Robots Corrupted 8 | . . . . 2 6 . Combat Hostiles 7 | . . . . 2 5 . Parts Fried 7 | . . . . 2 5 . Impact Corruptions 5 | . . . . . 4 1 Robots Melted . | . . . . . . . Combat Hostiles . | . . . . . . . Parts Melted 3 | . 1 . 1 1 . . Heat Transferred 3861 | . 333 1073 481 1887 87 . Parts Sabotaged . | . . . . . . . Parts Stolen . | . . . . . . . Parts Stripped . | . . . . . . . Power Chain Reactions 1 | . . . . 1 . . Alert | -11 -10 -9 -9 -8 -7 -7 ------- Run | Yrd Mat Mat Sto Mat Fac Low Peak Influence 846 | . 115 348 655 655 846 . Initial 195 | . . 48 102 156 195 . Average 298 | . 48 189 344 384 287 . Maximum Alert Level 3 | . . 1 2 2 3 . Low Security (%) 37 | 100 100 42 29 11 45 . Level 1 32 | . . 57 30 37 27 . Level 2 24 | . . . 39 50 14 . Level 3 5 | . . . . . 12 . Level 4 . | . . . . . . . Level 5 . | . . . . . . . High Security . | . . . . . . . Max Security . | . . . . . . . Squads Dispatched 18 | . . 2 5 3 8 . Investigation 5 | . . 1 3 . 1 . Extermination 3 | . . . . . 3 . Reinforcement 5 | . . 1 . 2 2 . Assault 5 | . . . 2 1 2 . Garrison . | . . . . . . . Intercept . | . . . . . . . Searches Triggered . | . . . . . . . Construction Impeded 1 | . . . . . 1 . Haulers Reinforced . | . . . . . . . Active Scanning Responses . | . . . . . . . Cargo Convoy Interrupts . | . . . . . . . Stealth | -11 -10 -9 -9 -8 -7 -7 --------- Run | Yrd Mat Mat Sto Mat Fac Low Distress Signals 6 | . . 1 1 2 2 . Communications Jammed . | . . . . . . . Distress Signals . | . . . . . . . Times Spotted 155 | . 5 22 23 37 52 16 Peak Tracking Total 9 | . 3 5 9 6 6 7 Tactical Retreats 11 | . 1 . . 4 5 1 Traps | -11 -10 -9 -9 -8 -7 -7 ------- Run | Yrd Mat Mat Sto Mat Fac Low Traps Triggered 11 | . 2 3 1 2 3 . Indirectly . | . . . . . . . Trap Hack Attempts . | . . . . . . . Triggered . | . . . . . . . Disarmed . | . . . . . . . Reprogrammed 6 | . . . 6 . . . Reused 1 | . . . 1 . . . Traps Extracted . | . . . . . . . Installed . | . . . . . . . Triggered 3 | . . . 1 . . 2 Machines | -11 -10 -9 -9 -8 -7 -7 ---------- Run | Yrd Mat Mat Sto Mat Fac Low Machines Disabled 25 | . . 1 6 3 14 1 Max in Single Turn 4 | . . 1 1 2 4 1 Garrison Access 4 | . . . 1 1 2 . Machines Repaired . | . . . . . . . Machines Dismantled . | . . . . . . . Machines Sabotaged . | . . . . . . . Overloaded Fab Kills . | . . . . . . . Hacking | -11 -10 -9 -9 -8 -7 -7 --------- Run | Yrd Mat Mat Sto Mat Fac Low Machines Accessed 34 | . 1 2 10 6 15 . Terminals 25 | . 1 2 9 5 8 . Fabricators 2 | . . . . . 2 . Repair Stations 2 | . . . . . 2 . Recycling Units 1 | . . . . . 1 . Scanalyzers . | . . . . . . . Garrison Access 4 | . . . 1 1 2 . Total Hacks 68 | . 2 5 21 16 24 . Successful 29 | . . 1 11 8 9 . Failed 39 | . 2 4 10 8 15 . Catastrophic 6 | . . . 1 1 4 . Database Lockouts . | . . . . . . . Manual 33 | . 1 4 9 7 12 . Terminals 54 | . 2 5 20 15 12 . Fabricators 4 | . . . . . 4 . Repair Stations 5 | . . . . . 5 . Recycling Units 1 | . . . . . 1 . Scanalyzers . | . . . . . . . Garrison Access 4 | . . . 1 1 2 . Terminal Hacks 17 | . . 1 8 5 3 . Record 1 | . . . . . 1 . Robot Analysis 2 | . . 1 . 1 . . Prototype ID Bank 2 | . . . 1 1 . . Open Door 3 | . . . 3 . . . Branch Access Points 1 | . . . . 1 . . Terminal Index 1 | . . . 1 . . . Unreport Threat 3 | . . . 2 1 . . Locate Traps 2 | . . . . 1 1 . Reprogram Traps 1 | . . . 1 . . . Hauler Manifests 1 | . . . . . 1 . Fabricator Hacks . | . . . . . . . Repair Station Hacks . | . . . . . . . Recycling Unit Hacks . | . . . . . . . Scanalyzer . | . . . . . . . Garrison Access Hacks 4 | . . . 1 1 2 . Seal Access 4 | . . . 1 1 2 . Unauthorized Hacks 7 | . . . 2 2 3 . Terminals 4 | . . . 2 2 . . Botnet 4 | . . . 2 2 . . Fabricators 2 | . . . . . 2 . Liberate 1 | . . . . . 1 . Fabnet 1 | . . . . . 1 . Repair Stations 1 | . . . . . 1 . Patch 1 | . . . . . 1 . Recycling Units . | . . . . . . . Scanalyzers . | . . . . . . . Garrison Access . | . . . . . . . Data Cores Recovered 2 | . . 1 1 . . . Used 1 | . . 1 . . . . Hacking Detections 25 | . 1 2 7 5 10 . Full Trace Events 4 | . . . 2 2 . . Feedback Events . | . . . . . . . Feedback Blocked . | . . . . . . . Robot Schematics Acquired . | . . . . . . . Robots Built . | . . . . . . . Authchips . | . . . . . . . Time . | . . . . . . . Total Robot Build Rating . | . . . . . . . Part Schematics Acquired . | . . . . . . . Parts Built . | . . . . . . . Authchips . | . . . . . . . Time . | . . . . . . . Total Part Build Rating . | . . . . . . . Parts Repaired . | . . . . . . . Time . | . . . . . . . Parts Recycled . | . . . . . . . Recycled Matter . | . . . . . . . Retrieved Matter . | . . . . . . . Retrieved Components . | . . . . . . . Parts Scanalyzed . | . . . . . . . Part Schematics Acquired . | . . . . . . . Parts Damaged . | . . . . . . . Bothacking | -11 -10 -9 -9 -8 -7 -7 ------------ Run | Yrd Mat Mat Sto Mat Fac Low Used RIF Installer . | . . . . . . . Robots Hacked . | . . . . . . . Non-combat . | . . . . . . . Combat . | . . . . . . . Robot Hacks Applied . | . . . . . . . Relay Couplers Released . | . . . . . . . Fabnet Peak Effective % . | . . . . . . . Robots Rewired . | . . . . . . . Allies Hacked . | . . . . . . . Hacks Repelled . | . . . . . . . Allies | -11 -10 -9 -9 -8 -7 -7 -------- Run | Yrd Mat Mat Sto Mat Fac Low Total Allies 19 | . . . 12 . 7 . Largest Group 10 | . . . 10 5 4 . Highest-Rated Group 118 | . . . 118 94 96 . Highest-Rated Ally 32 | . . . 31 31 32 . Total Orders . | . . . . . . . Ally Attacks 219 | . . . 105 78 36 . Total Damage 2759 | . . . 1036 864 859 . Kills 42 | . . . 20 13 9 . Allies Corrupted . | . . . . . . . Allies Melted . | . . . . . . . Intel | -11 -10 -9 -9 -8 -7 -7 ------- Run | Yrd Mat Mat Sto Mat Fac Low Robot Analysis Total 2 | . . 1 . 1 . . Derelict Logs Recovered 2 | . . . . . . 2 Drone Launches . | . . . . . . . Drone Recoveries . | . . . . . . . Exploration | -11 -10 -9 -9 -8 -7 -7 ------------- Run | Yrd Mat Mat Sto Mat Fac Low Turns Passed 7669 | 1 302 646 916 1583 3028 1193 Spaces Moved 4013 | 1 153 296 469 746 1809 539 Core 2 | . . 1 . . 1 . Treads 2242 | . 136 295 469 746 58 538 Legs 20 | 1 17 . . . 1 1 Wheels 1745 | . . . . . 1745 . Hover 4 | . . . . . 4 . Flight . | . . . . . . . Fastest Speed 96 | 120 120 160 160 156 96 160 Average Speed 157 | 120 156 161 160 174 137 197 Slowest Speed 1050 | 120 240 550 160 305 1050 280 Overloaded Moves . | . . . . . . . Propulsion Burnouts . | . . . . . . . Robots Hopped . | . . . . . . . Cave-ins Triggered . | . . . . . . . Exploration Rate (%) 40 | 2 31 24 71 66 36 55 Regions Visited 6 Branch Regions 2 Pre-discovered Areas 1 | . . . 1 . . . Known Exits Taken 1 | . . . . . 1 . Unknown Exits Taken 5 | 1 1 1 1 1 . . Scrap Searched 3 | . . . . . . 3 Spaces Dug 1 | . . . . . 1 . Terrain Destroyed 183 | . . . 46 9 82 46 Melee 1 | . . . . . 1 . Projectile 20 | . . . . 4 4 12 AOE 162 | . . . 46 5 77 34 Terrain Rammed . | . . . . . . . Walls Destroyed . | . . . . . . . Machines Disabled . | . . . . . . . Actions | -11 -10 -9 -9 -8 -7 -7 --------- Run | Yrd Mat Mat Sto Mat Fac Low Total 4841 | 2 201 392 554 875 2216 601 Wait 341 | . 20 33 23 18 233 14 Move 4007 | . 152 295 468 745 1808 539 Hop . | . . . . . . . Pick Up 46 | . 7 7 4 11 17 . Fast Attach 42 | . 5 3 2 6 20 6 Attach 16 | . 2 . 1 . 7 6 Detach 11 | . 2 2 1 . 5 1 Swap 38 | . 2 5 9 8 13 1 Drop 61 | 2 4 9 6 11 29 . Fire 236 | . 7 37 30 76 52 34 Melee 39 | . . . 10 . 29 . Ram 1 | . . . . . 1 . Kick . | . . . . . . . Crush 1 | . . 1 . . . . Escape Stasis 2 | . . . . . 2 . Rewire . | . . . . . . . Trap . | . . . . . . . Miscellaneous . | . . . . . . . Route ------- -11/Scrapyard -10/Materials -9/Materials -9/Storage -8/Materials -7/Factory (discovered 2 exits: [*Fac] / *Low) -7/Lower Caves (discovered 1 exit: Low) History --------- Turn | Location | Event 2 | -11/Scrapyard | Discovered new exit (range 0) 2 | -11/Scrapyard | Entered Materials 276 | -10/Materials | Discovered new exit (range 16) 304 | -10/Materials | Entered another Materials area 304 | -9/Materials | Evolved 2 slots: Propulsion x1, Utility x1 316 | -9/Materials | Build established: Mutant 920 | -9/Materials | Discovered new exit (range 16) 950 | -9/Materials | Entered Storage 1015 | -9/Storage | Learned location of Armory (-3) 1157 | -9/Storage | Assisted by bots powering up and referring to "LRC-V3" 1253 | -9/Storage | Lost 4 allies 1439 | -9/Storage | Met a pair of Derelict thieves 1473 | -9/Storage | Build established: Commander-Mutant 1587 | -9/Storage | Lost 3 allies 1811 | -9/Storage | Discovered new exit (range 16) 1847 | -9/Storage | Build established: Mutant 1866 | -9/Storage | Entered Materials 1866 | -8/Materials | Accompanied by 5 allies 1866 | -8/Materials | Evolved 2 slots: Propulsion x1, Utility x1 3066 | -8/Materials | First assault squad dispatched 3073 | -8/Materials | Discovered new exit (range 15) 3449 | -8/Materials | Entered Factory 3449 | -7/Factory | Evolved 2 slots: Propulsion x1, Utility x1 3673 | -7/Factory | Lost 5 parts (2p1n1u1w) 5179 | -7/Factory | Build established: Scavenger-Mutant 5376 | -7/Factory | Discovered new exit (range 5) 5547 | -7/Factory | Build established: Mutant 5572 | -7/Factory | Discovered new exit (range 5) 5849 | -7/Factory | First assault squad dispatched 6109 | -7/Factory | Core integrity fell below 50% 6476 | -7/Factory | Identified exit to Lower Caves 6477 | -7/Factory | Entered Lower Caves 6615 | -7/Lower Caves | Attracted the attention of an 0b10 outpost 6615 | -7/Lower Caves | Learned 8 Factory zone layouts 6632 | -7/Lower Caves | Core integrity fell below 20% 6678 | -7/Lower Caves | Lost 6 parts (1p3u2w) 6687 | -7/Lower Caves | Destroyed 9 combat bots 7172 | -7/Lower Caves | Build established: Derelict-Mutant 7533 | -7/Lower Caves | Build established: Mutant 7538 | -7/Lower Caves | Identified exit to Lower Caves 7670 | -7/Lower Caves | Destroyed by S-27 Virus with Autogun Last Messages --------------- 07284_ Acquired 14 matter. 07289_ Acquired 20 matter. 07314_ System corrupted: Matter fused (-5). 07330_ System corrupted: Energy discharge (-84). 07408_ System corrupted: Matter fused (-10). 07411_ Acquired 83 matter. 07430_ PZIPZJ#I #AMZ4V ZVDMB3S8NP#|M<1J7QV 07468_ System corrupted: Energy discharge (-69). 07495_ System corrupted: Energy discharge (-63). 07528_ UO9,PXJMJW2PBOVHNPOJOMGJI9 US, 07538_ Acquired derelict log, extracted data. Loading 1 Lower Caves exit... 07546_ |H4VSA9IS8# TWJNZZQBXPW2KQAG::3F#TGYFKM 07569_ System corrupted: Energy discharge (-75). 07666_ Destroyed VTOL Module. 07666_ S-27 Virus knocked back. 07666_ Imp. Treads destroyed. 07666_ Med. Treads destroyed. 07669_ S-27 Virus destroyed. 07669_ Imp. Power Shielding destroyed. Map ----- +----------------------------------------------------+ | ?????????????????????????????????????????????????? | | ?????????????????????????????????????????????????? | | ?????????????????????????????????????????????????? | | ?????????????????????????????????????????????????? | | ?????????????????????????????????????????????????? | | ?????????????????????????????????????????????????? | | ?????????????????????????????????????????????????? | | ?????????????????????????????????????????????????? | | ?????????????????????????????????????????????????? | | ?????????????????????????????????????????????????? | | ?????????????????????????#???????????????????????? | | ????????????????????????# #??????????????????????? | | ???????????????????????# ??????????????????????? | | ???????????????????????# ##??# ????????????????? | | ??????????????????????## ### ????????????????? | | ????????????????????### ?????????????????? | | ???????????????????## ?????????????????? | | ???????????????????? ??????????????????? | | ???????????????????? ???????????????????? | | ????????????????????? ???????????????????? | | ?????????????????????? ????????????????????? | | ??????????????????????# #????????????????????? | | ??????????????????????# ?????????????????????? | | ???????????????????#### #?????????????????????? | | ???????????????????# ##????????????????????? | | ????????????????????# @ ##???????????????????? | | ????????????????????## ##??????????????????? | | ?????????????????????## ##?????????????????? | | ??????????????????????# # #?????????????????? | | ??????????????????????;s ### #######????????????? | | ?????????????????????## ??# ### ##???????????? | | ?????????????????????? % ??# ######??????? | | ????????????????????? #??# # #??????? | | ???????????????????? ss???######### ##?###### | | ??????????????????? ## ???????????## # ### | | ?????????????????? #?# ????????????## ### # | | ?????????????????##??###?????????????## ## # # | | ??????????????????????????????????????# | | ??????????????????????????????????????## | | ??????????????????????????????????????# # # | | ??????????????????????????????????????##### # # | | ????????????????????????????????????????### # ## | | ???????????????????????????????????????## # # #? | | ???????????????????????????????????????# # ## | | ???????????????????????????????????????# # # | | ???????????????????????????????????????## | | ????????????????????????????????????????## | | ?????????????????????????????????????????## | | ??????????????????????????????????????????## | | ???????????????????????????????????????????# # # | +----------------------------------------------------+ Best States ------------- Heat Dissipation 53 Energy Generation 18 Energy Capacity 310 Matter Stores 300 Matter Capacity 300 Sight Range 16 Terrain Scan Density 10 Armor Coverage 225 Power Shielding 66 Evasion (%) 55 Targeting Accuracy 8 Melee Accuracy 6 Target Analysis 5 Armor Integrity Analysis 30 Recoil Reduction 4 Particle Charging 15 Item Schematics ----------------- None Robot Schematics ------------------ None Fabricated ------------ Nothing Alien Tech Used ----------------- None Achievements -------------- None Challenges ------------ None Game ------ Seed WeldingUltimateMace Manual? 0 Play Time 00:56:03 Cumulative 129.8 hours Start 2024.11.21 @ 07:40:14 End 2024.11.21 @ 08:56:17 Sessions 2 Manual Loads 0 Difficulty Rogue Special Mode None Game No. 106 Rogue 87 Adventurer 16 Explorer 3 Win Type - Total 10 Types 8/0/1/1/0/0/0/0/0 Lore% 27 Gallery% 64 Achievement% 58 Wizard Run 0 Options --------- Layout 2 ASCII 0 Keyboard 0 Movement Numpad Keybinds 1 Fullscreen 1 Font 24/Terminus Map View 50x44 Zoom Use 0% Tactical HUD 1 Map Filters NONE Filters NONE Steam 1 RUN: 252e3724-f418-48fd-b318-008caf013b8c